bitfinex/quotes_BTCUSD_20241021
["timestamp","ask_amount","ask_price","bid_price","bid_amount"]
[1729484414854,4.72902192,68880.0,68879.0,0.22820352]
[1729484415789,4.82892192,68880.0,68879.0,0.30901179]
[1729484416010,4.82892192,68880.0,68879.0,0.2872511]
[1729484416250,4.82892192,68880.0,68879.0,0.28725151]
[1729484416701,4.82892192,68880.0,68879.0,0.2763627]
[1729484416908,4.82892192,68880.0,68879.0,0.27636479]
[1729484417110,4.82892192,68880.0,68879.0,0.28725385]
[1729484417329,4.82892192,68880.0,68879.0,0.20020377]
[1729484417581,4.82892192,68880.0,68879.0,0.2872583]
[1729484419385,4.82892192,68880.0,68879.0,0.20020377]
[1729484422214,4.82892192,68880.0,68879.0,0.30901204]
[1729484422874,4.82892192,68880.0,68879.0,0.04471706]
[1729484423082,4.82892192,68880.0,68879.0,0.08826245]
[1729484423293,4.82892192,68880.0,68879.0,0.04471706]
[1729484423716,4.82892192,68880.0,68879.0,0.033828]
[1729484424151,4.82892192,68880.0,68879.0,0.04471425]
[1729484425424,4.82892192,68880.0,68879.0,0.033828]
[1729484425664,4.82892192,68880.0,68879.0,0.04471124]
[1729484426546,4.97410192,68880.0,68879.0,0.04471124]
[1729484428127,4.97410192,68880.0,68879.0,0.03971124]
[1729484428357,5.05290192,68880.0,68879.0,0.028828]
[1729484429006,5.05290192,68880.0,68879.0,0.014828]
[1729484429439,5.05290192,68880.0,68879.0,0.013828]
[1729484429660,5.05290192,68880.0,68879.0,0.000828]
[1729484429859,5.05290192,68880.0,68879.0,0.012828]
[1729484430484,5.05290192,68880.0,68879.0,0.011828]
[1729484430699,5.05290192,68880.0,68879.0,0.020828]
[1729484431315,5.05290192,68880.0,68879.0,0.011828]
[1729484431522,5.05641416,68880.0,68879.0,0.019828]
[1729484431729,5.05641416,68880.0,68879.0,0.008828]
[1729484432156,5.05641416,68880.0,68879.0,0.015828]
[1729484432978,5.05641416,68880.0,68879.0,0.008828]
[1729484433238,5.05641416,68880.0,68879.0,0.012828]
[1729484433453,5.05641416,68880.0,68879.0,0.004828]
[1729484433656,5.05641416,68880.0,68879.0,0.011828]
[1729484434266,5.05641416,68880.0,68879.0,0.004828]
[1729484434474,5.05641416,68880.0,68879.0,0.008828]
[1729484435494,5.05641416,68880.0,68879.0,0.004828]
[1729484435751,5.05641416,68880.0,68879.0,0.008828]
[1729484436406,5.05641416,68880.0,68879.0,0.004828]
[1729484436839,5.05641416,68880.0,68879.0,0.008828]
[1729484437175,5.05641416,68880.0,68879.0,0.004828]
[1729484437584,5.05641416,68880.0,68879.0,0.008828]
[1729484438151,5.05641416,68880.0,68879.0,0.004828]
[1729484438545,5.05641416,68880.0,68879.0,0.008828]
[1729484446699,4.97761416,68880.0,68879.0,0.008828]
[1729484450321,4.97761416,68880.0,68879.0,0.004828]
[1729484450543,5.06769069,68880.0,68879.0,0.004828]
[1729484450765,5.06769069,68880.0,68879.0,0.008828]
[1729484451603,5.06769069,68880.0,68879.0,0.010828]
[1729484452036,5.06769069,68880.0,68879.0,0.006828]
[1729484452450,5.05411416,68880.0,68879.0,0.002828]
[1729484452666,5.06769443,68880.0,68879.0,0.005828]
[1729484453999,5.06769443,68880.0,68879.0,0.002828]
[1729484454301,5.06769443,68880.0,68879.0,0.004828]
[1729484456259,5.05411416,68880.0,68879.0,0.004828]
[1729484456846,5.06769361,68880.0,68879.0,0.004828]
[1729484462683,5.06769235,68880.0,68879.0,0.002828]
[1729484463182,5.06769235,68880.0,68879.0,0.001828]
[1729484463445,5.08941735,68880.0,68879.0,0.001828]
[1729484463693,5.06769235,68880.0,68879.0,0.002828]
[1729484464194,5.08941647,68880.0,68879.0,0.002828]
[1729484464436,5.06769235,68880.0,68879.0,0.002828]
[1729484465489,5.08941517,68880.0,68879.0,0.002828]
[1729484466323,5.08941249,68880.0,68879.0,0.002828]
[1729484466782,5.08941017,68880.0,68879.0,0.002828]
[1729484474147,5.01291017,68880.0,68879.0,0.002828]
[1729484474374,4.91301017,68880.0,68879.0,0.002828]
[1729484476944,4.87771416,68880.0,68879.0,0.002828]
[1729484477155,4.91300908,68880.0,68879.0,0.002828]
[1729484483957,4.87771416,68880.0,68879.0,0.002828]
[1729484484125,4.91300742,68880.0,68879.0,0.002828]
[1729484486558,5.09400742,68880.0,68879.0,0.002828]
[1729484486761,5.24296657,68880.0,68879.0,0.002828]
[1729484487806,5.30809595,68880.0,68879.0,0.000828]
[1729484488170,5.31409595,68880.0,68879.0,0.002828]
[1729484489211,5.31109595,68880.0,68879.0,0.001828]
[1729484489416,5.24596657,68880.0,68879.0,0.001828]
[1729484489615,5.24896657,68880.0,68879.0,0.002828]
[1729484490497,5.28935603,68880.0,68879.0,0.001828]
[1729484490945,5.25406277,68880.0,68879.0,0.001828]
[1729484491158,5.24892528,68880.0,68879.0,0.002828]
[1729484491358,5.29230989,68880.0,68879.0,0.002828]
[1729484492370,5.29230989,68880.0,68879.0,0.001828]
[1729484492371,5.28930989,68880.0,68879.0,0.001828]
[1729484492597,5.28630989,68880.0,68879.0,0.000828]
[1729484492794,5.29230989,68880.0,68879.0,0.002828]
[1729484493878,5.24892528,68880.0,68879.0,0.002828]
[1729484494312,5.21367331,68880.0,68879.0,0.002828]
[1729484494501,5.39787364,68880.0,68879.0,0.002828]
[1729484495178,5.44125825,68880.0,68879.0,0.002828]
[1729484495656,5.39787364,68880.0,68879.0,0.002828]
[1729484496093,5.24891449,68880.0,68879.0,0.002828]
[1729484497317,5.25091449,68880.0,68879.0,0.002828]
[1729484497553,5.24891449,68880.0,68879.0,0.002828]
[1729484497801,5.24890716,68880.0,68879.0,0.002828]
[1729484498684,5.24590716,68880.0,68879.0,0.001828]
[1729484499131,5.22722479,68880.0,68879.0,0.002828]
[1729484499339,5.22422479,68880.0,68879.0,0.001828]
[1729484499561,5.22722479,68880.0,68879.0,0.002828]
[1729484500464,5.36263246,68880.0,68879.0,0.002828]
[1729484500901,5.36263246,68880.0,68870.0,0.01]
[1729484500902,0.246398,68871.0,68870.0,0.01]
[1729484501118,0.46980724,68871.0,68870.0,0.01]
[1729484501329,0.46694201,68871.0,68870.0,0.01]
[1729484501537,0.61974201,68871.0,68870.0,0.01]
[1729484501779,0.46694201,68871.0,68870.0,0.01]
[1729484502196,0.48049061,68871.0,68870.0,0.01]
[1729484504412,0.48049061,68871.0,68870.0,0.011]
[1729484505501,0.48049061,68871.0,68870.0,0.012]
[1729484505701,0.46694201,68871.0,68870.0,0.011]
[1729484505909,0.48048755,68871.0,68870.0,0.01]
[1729484506123,0.48448755,68871.0,68870.0,0.01]
[1729484506543,0.48248755,68871.0,68870.0,0.01]
[1729484506713,0.48448755,68871.0,68870.0,0.01]
[1729484506918,0.48248755,68871.0,68870.0,0.01]
[1729484507120,0.51821157,68871.0,68870.0,0.01]
[1729484507521,0.52021157,68871.0,68870.0,0.01]
[1729484508335,0.52021157,68871.0,68870.0,0.010828]
[1729484508813,0.51821157,68871.0,68870.0,0.010828]
[1729484509057,0.51621157,68871.0,68870.0,0.010828]
[1729484509262,0.51921157,68871.0,68870.0,0.011828]
[1729484509741,0.51921157,68871.0,68870.0,0.010828]
[1729484509911,0.52221157,68871.0,68870.0,0.010828]
[1729484510115,0.522213,68871.0,68870.0,0.010828]
[1729484512816,0.48648898,68871.0,68870.0,0.010828]
[1729484513663,0.47294201,68871.0,68870.0,0.010828]
[1729484513820,0.48649557,68871.0,68870.0,0.010828]
[1729484514799,0.48849557,68871.0,68870.0,0.010828]
[1729484515055,0.58849557,68871.0,68870.0,0.010828]
[1729484515261,0.73745472,68871.0,68870.0,0.010828]
[1729484516292,0.73545472,68871.0,68870.0,0.01105]
[1729484517646,0.72190116,68871.0,68870.0,0.01105]
[1729484517772,0.73545893,68871.0,68870.0,0.01105]
[1729484521035,0.58649978,68871.0,68870.0,0.01105]
[1729484521368,0.58649732,68871.0,68870.0,0.01105]
[1729484521594,0.73929732,68871.0,68870.0,0.01105]
[1729484521797,0.58649732,68871.0,68870.0,0.01105]
[1729484526276,0.49029732,68871.0,68870.0,0.01105]
[1729484531778,0.47674201,68871.0,68870.0,0.01105]
[1729484531989,0.49030691,68871.0,68870.0,0.01105]
[1729484532198,0.5577467,68871.0,68870.0,0.01105]
[1729484535567,0.55774891,68871.0,68870.0,0.01105]
[1729484538086,0.60113109,68871.0,68870.0,0.01105]
[1729484538648,0.60113681,68871.0,68870.0,0.01105]
[1729484539201,0.58756937,68871.0,68870.0,0.01105]
[1729484539400,0.60113918,68871.0,68870.0,0.01105]
[1729484540886,0.58756937,68871.0,68870.0,0.01105]
[1729484541077,0.60114051,68871.0,68870.0,0.01105]
[1729484541789,0.55775261,68871.0,68870.0,0.01105]
[1729484542927,0.60926333,68871.0,68870.0,0.01105]
[1729484543148,0.62283473,68871.0,68870.0,0.01105]
[1729484543961,0.55775287,68871.0,68870.0,0.01105]
[1729484544403,0.62285664,68871.0,68870.0,0.01105]
[1729484546130,0.55775287,68871.0,68870.0,0.01105]
[1729484546385,0.62287102,68871.0,68870.0,0.01105]
[1729484546598,0.55775287,68871.0,68870.0,0.01105]
[1729484548396,0.64452868,68871.0,68870.0,0.01105]
[1729484548833,0.64459369,68871.0,68870.0,0.01105]
[1729484550100,0.55775287,68871.0,68870.0,0.01105]
[1729484551260,0.49031341,68871.0,68870.0,0.01105]
[1729484552400,0.47674201,68871.0,68870.0,0.01105]
[1729484554239,0.56359087,68871.0,68870.0,0.01105]
[1729484555377,0.51947571,68871.0,68870.0,0.01105]
[1729484556288,0.51947571,68871.0,68864.0,0.000829]
[1729484556289,0.342811,68865.0,68864.0,0.000829]
[1729484556524,0.50734206,68865.0,68864.0,0.000829]
[1729484556735,0.59754241,68865.0,68864.0,0.000829]
[1729484556961,0.51069255,68865.0,68864.0,0.000829]
[1729484557171,0.59752389,68865.0,68864.0,0.000829]
[1729484557584,0.59752389,68865.0,68864.0,0.003829]
[1729484557759,0.49712064,68865.0,68864.0,0.006829]
[1729484558198,0.5839536,68865.0,68864.0,0.006829]
[1729484558397,0.5839536,68865.0,68864.0,0.003829]
[1729484558604,0.5839536,68865.0,68864.0,0.000829]
[1729484558811,0.58394048,68865.0,68864.0,0.000829]
[1729484559037,0.49512064,68865.0,68864.0,0.003829]
[1729484559270,0.64797018,68865.0,68864.0,0.003829]
[1729484559530,0.49512064,68865.0,68864.0,0.003829]
[1729484559781,0.49512064,68865.0,68864.0,0.006829]
[1729484560279,0.49512064,68865.0,68864.0,0.003829]
[1729484560502,0.49512064,68865.0,68864.0,0.000829]
[1729484560732,0.63895597,68865.0,68864.0,0.001829]
[1729484560977,0.64295597,68865.0,68864.0,0.002829]
[1729484561227,0.70405633,68865.0,68864.0,0.001829]
[1729484561420,0.70805633,68865.0,68864.0,0.002829]
[1729484561699,0.70805633,68865.0,68864.0,0.001829]
[1729484562162,0.71205633,68865.0,68864.0,0.002829]
[1729484563546,0.70905633,68865.0,68864.0,0.001829]
[1729484563795,0.568221,68865.0,68864.0,0.001829]
[1729484564016,0.571221,68865.0,68864.0,0.002829]
[1729484564239,0.50612064,68865.0,68864.0,0.002829]
[1729484564462,0.52167767,68865.0,68864.0,0.002829]
[1729484564678,0.66563682,68865.0,68864.0,0.001829]
[1729484564911,0.72273718,68865.0,68864.0,0.001829]
[1729484565151,0.72973718,68865.0,68864.0,0.002829]
[1729484565372,0.66063682,68865.0,68864.0,0.001829]
[1729484565836,0.66063617,68865.0,68864.0,0.001829]
[1729484566315,0.72273653,68865.0,68864.0,0.000829]
[1729484566548,0.72273653,68865.0,68864.0,0.001829]
[1729484566759,0.72973653,68865.0,68864.0,0.002829]
[1729484567171,0.72273653,68865.0,68864.0,0.000829]
[1729484567380,0.71318015,68865.0,68864.0,0.001829]
[1729484567586,0.71618015,68865.0,68864.0,0.002829]
[1729484567799,0.71818015,68865.0,68864.0,0.002829]
[1729484568222,0.65307979,68865.0,68864.0,0.002829]
[1729484568637,0.71818015,68865.0,68864.0,0.002829]
[1729484568869,0.71615375,68865.0,68864.0,0.002829]
[1729484569303,0.65311979,68865.0,68864.0,0.002829]
[1729484570224,0.50216064,68865.0,68864.0,0.002829]
[1729484571280,0.50416064,68865.0,68864.0,0.002829]
[1729484572577,0.5692346,68865.0,68864.0,0.002829]
[1729484572820,0.50416064,68865.0,68864.0,0.002829]
[1729484573494,0.42511694,68865.0,68864.0,0.002829]
[1729484573703,0.41156064,68865.0,68864.0,0.002829]
[1729484573916,0.4684929,68865.0,68864.0,0.002829]
[1729484574546,0.61745205,68865.0,68864.0,0.002829]
[1729484576638,0.56051979,68865.0,68864.0,0.002829]
[1729484576822,0.6174538,68865.0,68864.0,1e-06]
[1729484577098,0.56051979,68865.0,68864.0,1e-06]
[1729484577319,0.62358259,68865.0,68864.0,1e-06]
[1729484578411,0.55851979,68865.0,68864.0,1e-06]
[1729484578618,0.62358147,68865.0,68864.0,1e-06]
[1729484578825,0.47462232,68865.0,68864.0,1e-06]
[1729484579027,0.47462236,68865.0,68864.0,1e-06]
[1729484579288,0.40956064,68865.0,68864.0,1e-06]
[1729484579711,0.45293641,68865.0,68864.0,1e-06]
[1729484579924,0.40956064,68865.0,68864.0,1e-06]
[1729484581150,0.5352236,68865.0,68864.0,1e-06]
[1729484582603,0.57859937,68865.0,68864.0,1e-06]
[1729484583099,0.5352236,68865.0,68864.0,0.000829]
[1729484584275,0.40956064,68865.0,68864.0,0.000829]
[1729484584502,0.42312902,68865.0,68864.0,0.000829]
[1729484585206,0.42012902,68865.0,68864.0,0.000828]
[1729484585451,0.42412902,68865.0,68864.0,0.001828]
[1729484585680,0.40656064,68865.0,68864.0,0.001828]
[1729484586146,0.41156064,68865.0,68864.0,0.002828]
[1729484586418,0.45493641,68865.0,68864.0,0.002828]
[1729484586623,0.42513354,68865.0,68864.0,0.002828]
[1729484587066,0.46850931,68865.0,68864.0,0.002828]
[1729484587499,0.46850925,68865.0,68864.0,0.002828]
[1729484587944,0.17117433,68865.0,68864.0,0.170528]
[1729484588169,0.16046672,68865.0,68864.0,0.170528]
[1729484588614,0.15646672,68865.0,68864.0,0.169528]
[1729484588828,0.15146672,68865.0,68864.0,0.168528]
[1729484589044,0.15346672,68865.0,68864.0,0.168528]
[1729484589257,0.15346672,68865.0,68864.0,0.169528]
[1729484589470,0.15346672,68865.0,68864.0,0.168528]
[1729484589680,0.15146672,68865.0,68864.0,0.168528]
[1729484589889,0.15146672,68865.0,68864.0,0.169528]
[1729484590100,0.15146672,68865.0,68864.0,0.170528]
[1729484590311,0.15646672,68865.0,68864.0,0.170528]
[1729484590958,0.15146672,68865.0,68864.0,0.170528]
[1729484591814,0.15146672,68865.0,68864.0,0.169528]
[1729484592059,0.15146672,68865.0,68864.0,0.168528]
[1729484592273,4.87883264,68865.0,68864.0,0.169528]
[1729484592489,4.88954025,68865.0,68864.0,0.170528]
[1729484593124,4.89454025,68865.0,68864.0,0.170528]
[1729484593369,4.88954025,68865.0,68864.0,0.170528]
[1729484593584,4.88952235,68865.0,68864.0,0.169528]
[1729484594020,4.87596741,68865.0,68864.0,0.170528]
[1729484594449,4.88952235,68865.0,68864.0,0.169528]
[1729484594654,4.87596741,68865.0,68864.0,0.170528]
[1729484595082,4.87596741,68865.0,68864.0,0.169528]
[1729484595292,4.87596741,68865.0,68864.0,0.168528]
[1729484595508,4.87596741,68865.0,68864.0,0.170528]
[1729484595963,4.87762341,68865.0,68864.0,0.170528]
[1729484596796,4.87762341,68865.0,68864.0,0.169528]
[1729484597219,4.87762341,68865.0,68864.0,0.170528]
[1729484597437,4.87762341,68865.0,68864.0,0.169528]
[1729484597660,4.87762341,68865.0,68864.0,0.170528]
[1729484598303,4.87762341,68865.0,68864.0,0.168528]
[1729484599432,4.87762341,68865.0,68864.0,0.169528]
[1729484599642,4.87762341,68865.0,68864.0,0.168528]
[1729484599895,4.87762341,68865.0,68864.0,0.179528]
[1729484600132,4.87762341,68865.0,68864.0,0.168528]
[1729484600577,4.87762341,68865.0,68864.0,0.169528]
[1729484600997,4.87762341,68865.0,68864.0,0.168528]
[1729484601439,4.87762341,68865.0,68864.0,0.176528]
[1729484601869,4.87762341,68865.0,68864.0,0.184528]
[1729484607751,4.87762341,68865.0,68864.0,0.179528]
[1729484620616,4.87762341,68865.0,68864.0,0.180356]
[1729484626117,4.87762341,68865.0,68864.0,0.016828]
[1729484638110,4.97742341,68865.0,68864.0,0.016828]
[1729484642450,4.87762341,68865.0,68864.0,0.016828]
[1729484652676,0.15025749,68865.0,68864.0,0.016828]
[1729484652882,0.15312272,68865.0,68864.0,0.016828]
[1729484657134,0.25312272,68865.0,68864.0,0.016828]
[1729484683868,0.145222,68860.0,68859.0,0.04356327]
[1729484684081,0.14808723,68860.0,68859.0,0.04356327]
[1729484684320,0.15120422,68860.0,68859.0,0.04356327]
[1729484684981,0.15120422,68860.0,68859.0,0.05557991]
[1729484684982,0.00598222,68860.0,68859.0,0.05557991]
[1729484685209,0.43878499,68860.0,68859.0,0.05557991]
[1729484686265,0.43978499,68860.0,68859.0,0.06857991]
[1729484687321,0.43978499,68860.0,68859.0,0.09036987]
[1729484688232,0.43978499,68860.0,68859.0,0.06858493]
[1729484691291,0.43978499,68860.0,68859.0,0.025]
[1729484691713,0.43978499,68860.0,68859.0,0.06858493]
[1729484691929,0.43978499,68860.0,68859.0,0.06941293]
[1729484693693,0.43978499,68860.0,68859.0,0.025828]
[1729484693898,0.43978499,68860.0,68859.0,0.06941293]
[1729484694550,0.43978499,68860.0,68859.0,0.025828]
[1729484695028,0.43978499,68860.0,68859.0,0.06941293]
[1729484695587,0.43978499,68860.0,68859.0,0.025828]
[1729484696014,0.43978499,68860.0,68859.0,0.06941293]
[1729484696217,0.43978499,68860.0,68859.0,0.06941215]
[1729484696450,0.43978499,68860.0,68859.0,0.025828]
[1729484699227,0.43978499,68860.0,68859.0,0.06941215]
[1729484701461,0.43978499,68860.0,68859.0,0.025828]
[1729484702088,0.43978499,68860.0,68859.0,0.06941215]
[1729484702316,0.43978499,68860.0,68859.0,0.025828]
[1729484703706,0.5707241,68860.0,68859.0,0.025828]
[1729484703916,0.76534414,68860.0,68859.0,0.025828]
[1729484704552,0.76534414,68860.0,68859.0,0.013828]
[1729484705189,0.77891197,68860.0,68859.0,0.013828]
[1729484705399,0.76534414,68860.0,68859.0,0.013828]
[1729484705608,0.90399159,68860.0,68859.0,0.013828]
[1729484705815,0.90399159,68860.0,68859.0,0.012828]
[1729484706028,0.90399159,68860.0,68859.0,0.016828]
[1729484706241,0.90399159,68860.0,68859.0,0.012828]
[1729484706455,0.90399159,68860.0,68859.0,0.000828]
[1729484706456,0.90299159,68860.0,68859.0,0.000828]
[1729484706667,0.90299159,68860.0,68859.0,0.001828]
[1729484706869,0.90299159,68860.0,68859.0,0.000828]
[1729484707366,0.90799159,68860.0,68859.0,0.000828]
[1729484708441,0.78290642,68860.0,68859.0,0.000828]
[1729484708920,0.78289787,68860.0,68859.0,0.000828]
[1729484709134,0.77789787,68860.0,68859.0,0.000828]
[1729484709352,0.78289787,68860.0,68859.0,0.000828]
[1729484709571,0.78789787,68860.0,68859.0,0.000828]
[1729484709804,0.90892544,68860.0,68859.0,0.000828]
[1729484710228,1.01392544,68860.0,68859.0,0.000828]
[1729484712337,1.01392001,68860.0,68859.0,0.000828]
[1729484714072,0.89289244,68860.0,68859.0,0.000828]
[1729484715089,0.87934414,68860.0,68859.0,0.000828]
[1729484722327,0.88134414,68860.0,68859.0,0.000828]
[1729484722565,0.87934414,68860.0,68859.0,0.000828]
[1729484724848,0.88134414,68860.0,68859.0,0.000828]
[1729484725305,1.01150752,68860.0,68859.0,0.000828]
[1729484726701,1.00950752,68860.0,68859.0,0.000828]
[1729484726963,1.01150752,68860.0,68859.0,0.000828]
[1729484727122,1.00950752,68860.0,68859.0,0.000828]
[1729484728854,0.150236,68853.0,68852.0,0.000829]
[1729484729150,0.37341582,68853.0,68852.0,0.000829]
[1729484729351,0.37055059,68853.0,68852.0,0.000829]
[1729484730192,0.37055059,68853.0,68852.0,0.002829]
[1729484730978,0.37055059,68853.0,68852.0,0.003829]
[1729484731794,0.37055059,68853.0,68852.0,0.002829]
[1729484731968,0.37055059,68853.0,68852.0,0.000829]
[1729484732175,0.49774295,68853.0,68852.0,0.000829]
[1729484734002,0.49574295,68853.0,68852.0,0.000829]
[1729484734207,0.50074295,68853.0,68852.0,0.000829]
[1729484734638,0.49974295,68853.0,68852.0,0.000829]
[1729484735071,0.50374295,68853.0,68852.0,0.000829]
[1729484735712,0.60224295,68853.0,68852.0,0.000829]
[1729484736623,0.59724295,68853.0,68852.0,0.000829]
[1729484736852,0.59724295,68853.0,68852.0,0.002829]
[1729484737319,0.47305059,68853.0,68852.0,0.000829]
[1729484737790,0.64465059,68853.0,68852.0,0.001829]
[1729484738015,0.64465059,68853.0,68852.0,0.004829]
[1729484738267,0.64465059,68853.0,68852.0,0.000829]
[1729484738508,0.79360974,68853.0,68852.0,0.000829]
[1729484738719,0.79860974,68853.0,68852.0,0.000829]
[1729484739199,0.73000974,68853.0,68852.0,0.001829]
[1729484739404,0.57405059,68853.0,68852.0,0.000829]
[1729484739821,0.59678933,68853.0,68852.0,0.000829]
[1729484740247,0.59178933,68853.0,68852.0,0.000829]
[1729484740682,0.59878933,68853.0,68852.0,0.001829]
[1729484740922,0.60578933,68853.0,68852.0,0.002829]
[1729484741158,0.59878933,68853.0,68852.0,0.001829]
[1729484741653,0.61478933,68853.0,68852.0,0.003829]
[1729484741822,0.59978933,68853.0,68852.0,0.001829]
[1729484742046,0.59178933,68853.0,68852.0,0.000829]
[1729484742202,0.60078933,68853.0,68852.0,0.001829]
[1729484742379,0.60978933,68853.0,68852.0,0.002829]
[1729484743926,0.66791605,68853.0,68852.0,0.002829]
[1729484745150,0.56941605,68853.0,68852.0,0.002829]
[1729484745599,0.51128933,68853.0,68852.0,0.002829]
[1729484750009,0.5546245,68853.0,68852.0,0.002829]
[1729484750491,0.51128933,68853.0,68852.0,0.002829]
[1729484750705,0.5546245,68853.0,68852.0,0.002829]
[1729484750928,0.51128933,68853.0,68852.0,0.002829]
[1729484752500,0.5546245,68853.0,68852.0,0.002829]
[1729484752980,0.70358365,68853.0,68852.0,0.002829]
[1729484753476,0.66024848,68853.0,68852.0,0.002829]
[1729484755120,0.55470968,68853.0,68852.0,0.002829]
[1729484755607,0.51128933,68853.0,68852.0,0.002829]
[1729484760074,0.55471593,68853.0,68852.0,0.002829]
[1729484760316,0.51128933,68853.0,68852.0,0.002829]
[1729484761034,0.48855059,68853.0,68852.0,0.002829]
[1729484762045,0.55368798,68853.0,68852.0,0.002829]
[1729484762796,0.55369632,68853.0,68852.0,0.002829]
[1729484763527,0.70265889,68853.0,68852.0,0.002829]
[1729484764763,0.63750974,68853.0,68852.0,0.002829]
[1729484766763,0.72437072,68853.0,68852.0,0.002829]
[1729484767589,0.63750974,68853.0,68852.0,0.002829]
[1729484767796,0.57543992,68853.0,68852.0,0.002829]
[1729484768946,0.55372605,68853.0,68852.0,0.002829]
[1729484769143,0.48855059,68853.0,68852.0,0.002829]
[1729484769524,0.57543992,68853.0,68852.0,0.002829]
[1729484770847,0.48855059,68853.0,68852.0,0.002829]
[1729484771031,0.57546866,68853.0,68852.0,0.002829]
[1729484771638,0.71051247,68853.0,68852.0,1e-06]
[1729484772218,0.005,68850.0,68849.0,0.000829]
[1729484772429,0.005,68850.0,68837.0,0.21563652]
[1729484772430,0.150268,68838.0,68837.0,0.21563652]
[1729484772641,0.30209238,68838.0,68837.0,0.21563652]
[1729484772845,0.15682438,68838.0,68832.0,0.0759]
[1729484773057,0.145279,68833.0,68832.0,0.0759]
[1729484773275,0.145281,68832.0,68831.0,0.001644]
[1729484773710,0.15121106,68832.0,68831.0,0.001644]
[1729484776328,0.30217021,68832.0,68831.0,0.001644]
[1729484776548,0.30117021,68832.0,68831.0,0.001644]
[1729484776753,0.30017021,68832.0,68831.0,0.001644]
[1729484777020,0.30217021,68832.0,68831.0,0.001644]
[1729484777633,0.30517021,68832.0,68831.0,0.001644]
[1729484777838,0.30217021,68832.0,68831.0,0.001644]
[1729484778465,0.30517021,68832.0,68831.0,0.001644]
[1729484778875,0.30317021,68832.0,68831.0,0.001644]
[1729484779077,0.30817021,68832.0,68831.0,0.001644]
[1729484779298,0.31117021,68832.0,68831.0,0.001644]
[1729484779570,0.30830498,68832.0,68831.0,0.001644]
[1729484779741,0.30530498,68832.0,68831.0,0.001644]
[1729484780128,0.30830498,68832.0,68831.0,0.001644]
[1729484798360,0.145289,68828.0,68827.0,0.0826]
[1729484798816,0.1482384,68828.0,68827.0,0.0826]
[1729484800238,0.1482384,68828.0,68827.0,0.0836]
[1729484800812,0.1482384,68828.0,68827.0,0.0846]
[1729484801203,0.1482384,68828.0,68827.0,0.1823]
[1729484801612,0.1482384,68828.0,68827.0,0.182128]
[1729484803254,0.1482384,68828.0,68827.0,0.181128]
[1729484822171,0.29719755,68828.0,68827.0,0.000828]
[1729484823158,0.29819755,68828.0,68827.0,0.000828]
[1729484823623,0.29719755,68828.0,68827.0,0.000828]
[1729484823869,0.29919755,68828.0,68827.0,0.000828]
[1729484824098,0.30119755,68828.0,68827.0,0.000828]
[1729484824334,0.29919755,68828.0,68827.0,0.000828]
[1729484824572,0.29719755,68828.0,68827.0,0.000828]
[1729484824800,0.726467,68826.0,68822.0,0.000822]
[1729484825034,0.00286523,68825.0,68822.0,0.000822]
[1729484825267,0.1453,68823.0,68822.0,0.000822]
[1729484825517,0.1453,68823.0,68822.0,0.00536659]
[1729484825759,0.14823788,68823.0,68822.0,0.00536659]
[1729484826499,0.14823788,68823.0,68822.0,0.00536667]
[1729484826982,0.14823788,68823.0,68822.0,0.00936667]
[1729484827231,0.14823788,68823.0,68822.0,0.00836667]
[1729484827735,0.14823788,68823.0,68822.0,0.00536667]
[1729484828010,0.14823788,68823.0,68822.0,0.00936667]
[1729484828208,0.14823788,68823.0,68822.0,0.006822]
[1729484828422,0.14823788,68823.0,68822.0,0.00736665]
[1729484829721,0.14823788,68823.0,68822.0,0.0202702]
[1729484831603,0.14823788,68823.0,68822.0,0.02027008]
[1729484834152,0.14823788,68823.0,68822.0,0.00936653]
[1729484834610,0.14823788,68823.0,68822.0,0.19826996]
[1729484835039,0.14823788,68823.0,68822.0,0.19826989]
[1729484838587,0.14823788,68823.0,68822.0,0.19372543]
[1729484838796,0.14823788,68823.0,68822.0,0.19826989]
[1729484842297,0.14823788,68823.0,68822.0,0.19372543]
[1729484842502,0.14823788,68823.0,68822.0,0.24188296]
[1729484842720,0.00293788,68823.0,68822.0,0.27521731]
[1729484842937,0.14823788,68823.0,68822.0,0.20979694]
[1729484843188,0.223519,68827.0,68826.0,0.1749]
[1729484843417,0.223519,68827.0,68826.0,0.17944445]
[1729484843632,0.223519,68827.0,68826.0,0.19034738]
[1729484843846,0.223519,68827.0,68826.0,0.25574512]
[1729484844296,0.223519,68827.0,68826.0,0.19034738]
[1729484844540,0.224519,68827.0,68826.0,0.19534738]
[1729484845163,0.224519,68827.0,68826.0,0.23893835]
[1729484845337,0.224519,68827.0,68826.0,0.23893792]
[1729484845491,0.224519,68827.0,68826.0,0.19534738]
[1729484845710,0.224519,68827.0,68826.0,0.26074512]
[1729484845908,0.225519,68827.0,68826.0,0.25327862]
[1729484846113,0.224519,68827.0,68826.0,0.2528226]
[1729484846348,0.223519,68827.0,68826.0,0.17944398]
[1729484846547,0.224519,68827.0,68826.0,0.19933811]
[1729484846743,0.223519,68827.0,68826.0,0.19033811]
[1729484846945,0.224519,68827.0,68826.0,0.24191834]
[1729484847120,0.225519,68827.0,68826.0,0.25091786]
[1729484847329,0.224519,68827.0,68826.0,0.24191786]
[1729484847703,0.2284544,68827.0,68826.0,0.25091786]
[1729484848064,0.2274544,68827.0,68826.0,0.24291786]
[1729484848321,0.2291124,68827.0,68826.0,0.24291786]
[1729484848525,0.2301124,68827.0,68826.0,0.25091786]
[1729484848731,0.2301124,68827.0,68826.0,0.20733811]
[1729484849141,0.2301124,68827.0,68826.0,0.25091786]
[1729484849352,0.2301124,68827.0,68826.0,0.20733811]
[1729484851671,0.2301124,68827.0,68826.0,0.19644398]
[1729484852091,0.2301124,68827.0,68826.0,0.20733281]
[1729484852500,0.2301124,68827.0,68826.0,0.20278883]
[1729484852855,0.2301124,68827.0,68826.0,0.20278857]
[1729484853256,0.2301124,68827.0,68826.0,0.1919]
[1729484853646,0.2301124,68827.0,68826.0,0.19644414]
[1729484854048,0.2301124,68827.0,68826.0,0.20733271]
[1729484854574,0.2301124,68827.0,68826.0,0.1919]
[1729484855570,0.22993753,68827.0,68826.0,0.19644411]
[1729484855961,0.22993753,68827.0,68826.0,0.2073325]
[1729484856566,0.22993753,68827.0,68826.0,0.20278839]
[1729484859545,0.22993753,68827.0,68826.0,0.1919]
[1729484860620,0.22993753,68827.0,68826.0,0.0979]